Cogmind - Beta 15 @@@ ROGUE MODE // 2025.06.07 @ 15:15:15 Player: Duduxx Result: Destroyed by D-53 Grenadier with Mini Grenade Launcher Performance ------------- Evolutions (0) 0 Regions Visited (4) 800 Robots Destroyed (11) 55 Value Destroyed (189) 189 Prototype IDs (23) 460 Alien Tech Used (0) 0 Bonus (300) 300 TOTAL SCORE: 1804 Bonus ------- Aligned with FarCom 300 Cogmind --------- Core Integrity 0/250 Matter 292/300 Energy 145/250 System Corruption 0% Temperature Cool (2) Movement Treading (160) Location -9/Mines Parts ------- > --- POWER (1) -------- Ion Engine > --- PROPULSION (2) --- Light Treads Light Treads > --- UTILITY (2) ------ Large Storage Unit Targeting Computer > --- WEAPON (2) ------- Assault Rifle > --- INVENTORY (15) --- Wheel Compact Wheel Small Storage Unit Weight Redist. System Sensor Array Modified TNC Targeting Computer Rocket Launcher Mining Laser Peak State ------------ > --- POWER ------------ Ion Engine > --- PROPULSION ------- Light Treads Light Treads > --- UTILITY ---------- Large Storage Unit Targeting Computer > --- WEAPON ----------- Assault Rifle Rocket Launcher > --- INVENTORY -------- Ion Engine Wheel Compact Wheel Small Storage Unit Weight Redist. System Sensor Array Modified TNC Targeting Computer Targeting Computer Small Laser Mining Laser [Rating: 9] Favorites ----------- Power Ion Engine Engine Ion Engine Propulsion Light Treads Treads Light Treads Utility Large Storage Unit Storage Large Storage Unit Processor Targeting Computer Weapon Assault Rifle Energy Gun Small Laser Ballistic Gun Assault Rifle Launcher Rocket Launcher Build | -11 -10 -10 -10 -9 ------- Run | Yrd Mat Min Exi Min Slots Evolved . | . . . . . Power . | . . . . . Propulsion . | . . . . . Utility . | . . . . . Weapon . | . . . . . Parts Attached 12 | 6 2 1 . 3 Power 2 | 1 . . . 1 Engine 2 | 1 . . . 1 Core . | . . . . . Reactor . | . . . . . Propulsion 2 | 2 . . . . Treads 2 | 2 . . . . Leg . | . . . . . Wheel . | . . . . . Hover . | . . . . . Flight . | . . . . . Utility 4 | 1 2 . . 1 Device . | . . . . . Storage 2 | 1 1 . . . Processor 2 | . 1 . . 1 Hackware . | . . . . . Protection . | . . . . . Artifact . | . . . . . Weapon 4 | 2 . 1 . 1 Energy Gun 2 | 1 . 1 . . Energy Cannon . | . . . . . Ballistic Gun 1 | 1 . . . . Ballistic Cannon . | . . . . . Launcher 1 | . . . . 1 Special Weapon . | . . . . . Impact Weapon . | . . . . . Slashing Weapon . | . . . . . Piercing Weapon . | . . . . . Special Melee Weapon . | . . . . . Unidentified Prototypes . | . . . . . Parts Lost 4 | . . 1 . 3 Power 1 | . . . . 1 Propulsion . | . . . . . Utility 1 | . . . . 1 Weapon 2 | . . 1 . 1 Highest Loss Streak 2 | . . 1 . 2 To Critical Strikes . | . . . . . Average Backups 8 | . 6 10 10 10 Power . | . 1 1 1 . Propulsion 1 | . 2 2 2 2 Utility 4 | . 3 5 5 5 Weapon 1 | . . 2 2 2 Tool/Special . | . . . . . Unused Backups 8 | . . 1 . 7 Power . | . . . . . Propulsion 2 | . . . . 2 Utility 4 | . . . . 4 Weapon 2 | . . 1 . 1 Tool/Special . | . . . . . Average Slot Usage (%) 98 | . 95 99 100 97 Engine 14 | . 14 14 14 14 Treads 28 | . 28 28 28 28 Storage 14 | . 14 14 14 14 Processor 12 | . 9 14 14 11 Energy Gun 13 | . 14 13 14 12 Ballistic Gun 14 | . 14 14 14 14 Peak Build Rating 9 | 6 8 8 8 9 Average Rating 7 | 4 7 7 8 7 On Entrance 6 | . 6 8 8 8 Naked Turns . | . . . . . Heaviest Build 29 | 14 29 29 28 28 Greatest Support 40 | 40 40 40 40 40 Greatest Overweight (x) . | . . . . . Average Overweight (x) . | . . . . . Largest Inventory Capacity 15 | 8 15 15 15 15 Average Capacity 13 | 6 12 15 15 15 Most Carried 11 | 3 10 10 11 11 Average Carried 8 | 1 6 9 10 10 Final Capacity 15 | 8 15 15 15 15 Final Carried 11 | 3 10 10 11 9 Class Distribution -------------------- 100% | Mutant Dominant Class ---------------- Mutant | -10/Materials Mutant | -10/Mines Mutant | -10/Exiles Mutant | -9/Mines Resources | -11 -10 -10 -10 -9 ----------- Run | Yrd Mat Min Exi Min Matter Collected 439 | 222 94 70 . 53 Remotely . | . . . . . Salvage Created 279 | . 161 90 . 28 Parts 18 | . 8 4 . 6 Haulers Intercepted 1 | . 1 . . . Recyclers Shooed 1 | . . . . 1 Parts Field Recycled . | . . . . . Retrieved Matter . | . . . . . Parts Self-Destructed . | . . . . . Prevented . | . . . . . Kills | -11 -10 -10 -10 -9 ------- Run | Yrd Mat Min Exi Min Combat Hostiles Destroyed 9 | . 3 2 . 4 Guns 4 | . 2 2 . . AOE 5 | . 1 . . 4 Classes Destroyed 4 | . 3 1 . . Hauler 1 | . 1 . . . Recycler 1 | . 1 . . . Swarmer 7 | . 3 . . 4 Grunt 2 | . . 2 . . Best Kill Streak 4 | . 4 2 . 4 Combat Bots Only 4 | . 3 2 . 4 Max Kills in Single Turn 3 | . 2 1 . 3 Gunslinging . | . . . . . Exploded 3 | . 1 . . 3 Melee . | . . . . . Uniques/NPCs Destroyed . | . . . . . Combat | -11 -10 -10 -10 -9 -------- Run | Yrd Mat Min Exi Min Hostile Shots Fired 56 | . 19 24 . 13 Missed 14 | . 7 4 . 3 Hits 42 | . 12 20 . 10 Projectile 42 | . 12 20 . 10 AOE 7 | . . . . 7 Damage Taken 741 | . 125 238 . 378 Core 251 | . 24 66 . 161 Absorbed by Shields . | . . . . . Core Remaining (%) 100 | 100 . . . . Volleys Fired 38 | . 20 15 . 3 Largest 2 | . 2 2 . 2 Hottest 60 | . 60 60 . 60 Shots Fired 65 | . 40 19 . 6 Gun 63 | . 40 19 . 4 Cannon . | . . . . . Launcher 2 | . . . . 2 Special . | . . . . . Kinetic 38 | . 20 15 . 3 Thermal 1 | . . . . 1 Explosive 2 | . . . . 2 Electromagnetic 24 | . 20 4 . . Robot Hit Streak 11 | . 11 8 . 10 Robot Miss Streak 3 | . 3 2 . 1 Penetration Max . | . . . . . Secondary Targets . | . . . . . Shots Hit Robots 43 | . 24 16 . 3 Core Hits 16 | . 7 5 . 4 Critical Kills . | . . . . . Critical Parts Destroyed . | . . . . . Critical Strikes . | . . . . . Melee Attacks . | . . . . . Impact . | . . . . . Slashing . | . . . . . Piercing . | . . . . . Sneak Attacks . | . . . . . Combat Hostiles . | . . . . . Follow-up Attacks . | . . . . . Damage Inflicted 869 | . 379 221 . 269 Guns 511 | . 287 209 . 15 Cannons . | . . . . . Explosions 342 | . 92 . . 250 Melee . | . . . . . Ramming 16 | . . 12 . 4 Kinetic 349 | . 164 170 . 15 Thermal 92 | . 92 . . . Explosive 250 | . . . . 250 Electromagnetic 162 | . 123 39 . . Impact . | . . . . . Slashing . | . . . . . Piercing . | . . . . . Highest Corruption . | . . . . . Average Corruption . | . . . . . Corruption Purged . | . . . . . Corruption Blocked . | . . . . . Overload Shots . | . . . . . Overflow Damage 5 | . . . . 5 Projectiles . | . . . . . Explosions 5 | . . . . 5 Melee . | . . . . . Knockbacks . | . . . . . Impact . | . . . . . Kinetic . | . . . . . Secondary . | . . . . . Self-Inflicted Damage 60 | . 30 . . 30 Shots 2 | . 1 . . 1 Rammed 2 | . . 1 . 1 Targets Rammed 2 | . . 1 . 1 Kicked . | . . . . . Crushed . | . . . . . Highest Temperature 56 | . 12 56 . . Average Temperature 27 | . 12 34 . . Received Heat Transfer 138 | . 6 132 . . Siege Activations . | . . . . . Martial Activations . | . . . . . Shielding Activations . | . . . . . Robots Disrupted . | . . . . . Combat Hostiles . | . . . . . Robots Corrupted . | . . . . . Combat Hostiles . | . . . . . Parts Fried 1 | . 1 . . . Impact Corruptions . | . . . . . Robots Melted . | . . . . . Combat Hostiles . | . . . . . Parts Melted . | . . . . . Heat Transferred 100 | . 100 . . . Parts Sabotaged . | . . . . . Parts Stolen . | . . . . . Parts Stripped . | . . . . . Power Chain Reactions 1 | . 1 . . . Alert | -11 -10 -10 -10 -9 ------- Run | Yrd Mat Min Exi Min Maximum Alert Level . | . . . . . Low Security (%) 100 | 100 100 100 . 100 Level 1 . | . . . . . Level 2 . | . . . . . Level 3 . | . . . . . Level 4 . | . . . . . Level 5 . | . . . . . High Security . | . . . . . Max Security . | . . . . . Peak Influence 131 | . 68 40 . 131 Initial . | . . . . . Average 26 | . 19 6 . 69 Influence Increases 276 | . 85 50 . 141 Destroy 0b10 Robot/C 180 | . 60 40 . 80 Destroy 0b10 Robot/NC 10 | . 10 . . . Destroy Leader 32 | . 12 10 . 10 Disable Machine 45 | . . . . 45 Destroy Structure 9 | . 3 . . 6 Influence Decreases 276 | . 85 50 . 141 Time Decay 255 | . 85 50 . 120 Lost Part 21 | . . . . 21 Squads Dispatched . | . . . . . Investigation . | . . . . . Extermination . | . . . . . Reinforcement . | . . . . . Assault . | . . . . . Garrison . | . . . . . Intercept . | . . . . . Searches Triggered . | . . . . . Construction Impeded . | . . . . . Haulers Reinforced . | . . . . . Active Scanning Responses . | . . . . . Cargo Convoy Interrupts . | . . . . . Stealth | -11 -10 -10 -10 -9 --------- Run | Yrd Mat Min Exi Min Distress Signals . | . . . . . Communications Jammed . | . . . . . Distress Signals . | . . . . . Times Spotted 15 | . 7 2 . 6 Peak Tracking Total 4 | . 3 2 . 4 Tactical Retreats . | . . . . . Traps | -11 -10 -10 -10 -9 ------- Run | Yrd Mat Min Exi Min Traps Triggered . | . . . . . Indirectly . | . . . . . Trap Hack Attempts . | . . . . . Triggered . | . . . . . Disarmed . | . . . . . Reprogrammed . | . . . . . Reused . | . . . . . Traps Extracted . | . . . . . Installed . | . . . . . Triggered . | . . . . . Machines | -11 -10 -10 -10 -9 ---------- Run | Yrd Mat Min Exi Min Machines Disabled 3 | . . . . 3 Max in Single Turn 3 | . . . . 3 Machines Repaired . | . . . . . Machines Dismantled . | . . . . . Machines Sabotaged . | . . . . . Overloaded Fab Kills . | . . . . . Hacking | -11 -10 -10 -10 -9 --------- Run | Yrd Mat Min Exi Min Machines Accessed 2 | . . . 2 . Terminals . | . . . . . Fabricators . | . . . . . Repair Stations . | . . . . . Recycling Units . | . . . . . Scanalyzers . | . . . . . Garrison Access . | . . . . . Total Hacks 2 | . . . 2 . Successful 2 | . . . 2 . Failed . | . . . . . Catastrophic . | . . . . . Database Lockouts . | . . . . . Manual 1 | . . . 1 . Terminals . | . . . . . Fabricators . | . . . . . Repair Stations . | . . . . . Recycling Units . | . . . . . Scanalyzers . | . . . . . Garrison Access . | . . . . . Terminal Hacks 2 | . . . 2 . Record 1 | . . . 1 . Proto ID Catalog 1 | . . . 1 . Fabricator Hacks . | . . . . . Repair Station Hacks . | . . . . . Recycling Unit Hacks . | . . . . . Scanalyzer . | . . . . . Garrison Access Hacks . | . . . . . Unauthorized Hacks . | . . . . . Terminals . | . . . . . Fabricators . | . . . . . Repair Stations . | . . . . . Recycling Units . | . . . . . Scanalyzers . | . . . . . Garrison Access . | . . . . . Data Cores Recovered . | . . . . . Used . | . . . . . Hacking Detections . | . . . . . Full Trace Events . | . . . . . Feedback Events . | . . . . . Feedback Blocked . | . . . . . Robot Schematics Acquired . | . . . . . Robots Built . | . . . . . Authchips . | . . . . . Time . | . . . . . Total Robot Build Rating . | . . . . . Part Schematics Acquired . | . . . . . Parts Built . | . . . . . Authchips . | . . . . . Time . | . . . . . Total Part Build Rating . | . . . . . Parts Repaired . | . . . . . Time . | . . . . . Parts Recycled . | . . . . . Recycled Matter . | . . . . . Retrieved Matter . | . . . . . Retrieved Components . | . . . . . Parts Scanalyzed . | . . . . . Part Schematics Acquired . | . . . . . Parts Damaged . | . . . . . Bothacking | -11 -10 -10 -10 -9 ------------ Run | Yrd Mat Min Exi Min Used RIF Installer . | . . . . . Robots Hacked . | . . . . . Non-combat . | . . . . . Combat . | . . . . . Robot Hacks Applied . | . . . . . Relay Couplers Released . | . . . . . Fabnet Peak Effective % . | . . . . . Robots Rewired . | . . . . . Allies Hacked . | . . . . . Hacks Repelled . | . . . . . Allies | -11 -10 -10 -10 -9 -------- Run | Yrd Mat Min Exi Min Total Allies . | . . . . . Largest Group . | . . . . . Highest-Rated Group . | . . . . . Highest-Rated Ally . | . . . . . Total Orders . | . . . . . Ally Attacks . | . . . . . Total Damage . | . . . . . Kills . | . . . . . Allies Corrupted . | . . . . . Allies Melted . | . . . . . Intel | -11 -10 -10 -10 -9 ------- Run | Yrd Mat Min Exi Min Active Infowar (turns) . | . . . . . Robot Analysis Total . | . . . . . Derelict Logs Recovered 3 | . . 2 . 1 Drone Launches . | . . . . . Drone Recoveries . | . . . . . Exploration | -11 -10 -10 -10 -9 ------------- Run | Yrd Mat Min Exi Min Turns Passed 1333 | 81 301 357 336 258 Spaces Moved 754 | 46 146 200 210 152 Core 3 | 3 . . . . Treads 751 | 43 146 200 210 152 Legs . | . . . . . Wheels . | . . . . . Hover . | . . . . . Flight . | . . . . . Fastest Speed 50 | 50 160 160 160 160 Average Speed 159 | 152 160 160 160 160 Slowest Speed 160 | 160 160 160 160 160 Overloaded Moves . | . . . . . Propulsion Burnouts . | . . . . . Robots Hopped . | . . . . . Potential Cave-ins . | . . . . . Cave-ins Triggered . | . . . . . Exploration Rate (%) 39 | 4 29 47 61 54 Regions Visited 4 Branch Regions 3 Pre-discovered Areas 2 | . . 1 1 . Known Exits Taken . | . . . . . Unknown Exits Taken 4 | 1 1 1 1 . Scrap Searched 2 | . . 1 . 1 Spaces Dug . | . . . . . Terrain Destroyed 8 | . 2 . . 6 Melee . | . . . . . Projectile . | . . . . . AOE 8 | . 2 . . 6 Terrain Rammed . | . . . . . Walls Destroyed . | . . . . . Machines Disabled . | . . . . . Actions | -11 -10 -10 -10 -9 --------- Run | Yrd Mat Min Exi Min Total 815 | 54 173 218 210 160 Wait . | . . . . . Move 750 | 45 145 199 209 152 Hop . | . . . . . Pick Up 11 | 3 6 1 1 . Fast Attach 8 | 6 1 1 . . Attach 2 | . . . . 2 Detach . | . . . . . Swap 3 | . 1 . . 2 Drop 1 | . . 1 . . Fire 38 | . 20 15 . 3 Melee . | . . . . . Ram . | . . . . . Kick . | . . . . . Crush 2 | . . 1 . 1 Escape Stasis . | . . . . . Rewire . | . . . . . Trap . | . . . . . Miscellaneous . | . . . . . Route ------- -11/Scrapyard -10/Materials -10/Mines (discovered 3 exits: [*Mat x2] / *Exi) -10/Exiles -9/Mines (discovered 2 exits: [*Mat x2]) History --------- Turn | Location | Event 27 | -11/Scrapyard | Discovered new exit (range 16) 82 | -11/Scrapyard | Entered Materials 312 | -10/Materials | Build established: Mutant 350 | -10/Materials | Discovered new exit (range 15) 383 | -10/Materials | Entered Mines 526 | -10/Mines | Received a Rocket Launcher from a helpful Derelict 567 | -10/Mines | Learned Materials machine intel 600 | -10/Mines | Discovered new exit (range 10) 627 | -10/Mines | Discovered new exit (range 9) 628 | -10/Mines | Learned location of Storage (-8) 732 | -10/Mines | Deemed a non-threat by the Exiles lab entrance 734 | -10/Mines | Discovered new exit (range 5) 740 | -10/Mines | Entered Exiles 779 | -10/Exiles | Met 8R-AWN 808 | -10/Exiles | Met EX-HEX 854 | -10/Exiles | Met EX-BIN 873 | -10/Exiles | Aligned with FarCom system 875 | -10/Exiles | Given EX-Vault access code 913 | -10/Exiles | Opened EX-Vault 924 | -10/Exiles | Found Modified TNC 956 | -10/Exiles | Warned to stay clear of 0b10 Research branches 1001 | -10/Exiles | Met EX-DEC 1012 | -10/Exiles | Learned location of Zion (-6) 1057 | -10/Exiles | Discovered new exit (range 14) 1076 | -10/Exiles | Left Exiles lab with Modified TNC 1076 | -10/Exiles | Entered Mines 1082 | -9/Mines | Core integrity fell below 50% 1127 | -9/Mines | Met a Derelict bent on vengeance 1283 | -9/Mines | Discovered new exit (range 12) 1320 | -9/Mines | Learned 2 Materials zone layouts 1321 | -9/Mines | Assembled infested the area 1324 | -9/Mines | Discovered new exit (range 12) 1329 | -9/Mines | Core integrity fell below 20% 1334 | -9/Mines | Destroyed by D-53 Grenadier with Mini Grenade Launcher Last Messages --------------- 01179_ Found 48 Matter. 01179_ Found Autogun. 01179_ Found 70 Matter. 01180_ Acquired 41 matter. 01190_ Slammed into R-06 Scavenger. 01225_ K-01 Serf collects debris. 01283_ EXIT=FOUND 01320_ Acquired derelict log, extracted data. Data stored: Materials zone layouts (x2). 01321_ ALERT: Infestation in the mines, dispatching Demolisher response squad. 01321_ C-30 ARC bursts open, deploying its payload. 01321_ D-53 Grenadier unfolds itself. 01322_ Ion Engine destroyed. 01324_ Plasma Injector explodes. 01324_ Seismic Survey Station disabled. 01324_ EXIT=FOUND 01324_ T-07 Excavator destroyed. 01334_ Sml. Laser destroyed. Map ----- +----------------------------------------------------+ | | | | | | | | | | | | | | | | | | | | | | | | | ?????????????????????????????????????????????????? | | ???????????#?????????????????????????????????????? | | ????????####"####????????????????????????????????? | | ????????# ;??#####????####????????????????? | | ????????# ;### ###### ##???????????????? | | ????????# < ## #???????????????? | | ????????# % #???????????????? | | ????????# """ #???????????????? | | ????????# d """ ##??????????????? | | ????????# r """ #??????????????? | | ????????# =d < #??????????????? | | ????????# ##?????????????? | | ????????# ##????????????? | | ????????#######?### ## @ #????????????? | | ??????????????????###### ## #????????????? | | ???????????????????????# # #### ##????????????? | | ???????????????????????##?# #??# ##????????????? | | ???????????????????###########?## ##???????????? | | ??????????????????## ##??## ######??????? | | ?????????????????## #?## #??????? | | ?????????????????# ### #??????? | | ????????????????## ##??????? | | ???????????????## ## ## #???????? | | ???????????????# ####### ####### #???????? | | ???????????????# ##?????# #?????? ##???????? | | ??????????###?## ##??????# #?????? #????????? | | ?????????? ### ##??????# ?????? #???????? | | ??????????# ## ###????###??????# #???????? | | ?????####?# ## ##?????????????# ##???????? | | ??#### ### ### #??????????????###????????? | | ??# ## #### #?????????????????????????? | | ??# ##?????????????????????????? | | ### ###??????????????????????????? | | ### ### #### ##????????????????????????????? | | ### ### #??####?????????????????????????????? | | #?# ## #???????????????????????????????????? | | #??# ##??????????????????????????????????? | | #??## #??????????????????????????????????? | +----------------------------------------------------+ Best States ------------- Heat Dissipation 25 Energy Generation 10 Energy Capacity 250 Matter Stores 300 Matter Capacity 300 Sight Range 16 Terrain Scan Density 10 Evasion (%) 40 Targeting Accuracy 5 Recoil Reduction 2 Item Schematics ----------------- None Robot Schematics ------------------ None Fabricated ------------ Nothing Repaired ---------- Nothing Alien Tech Used ----------------- None Achievements -------------- None Challenges ------------ None Game ------ Seed ComponentExpertAccelerator Manual? 0 Play Time 00:06:43 Cumulative 109.3 hours Start 2025.06.07 @ 15:09:33 End 2025.06.07 @ 15:15:15 Sessions 1 Manual Loads 0 Difficulty Rogue Special Mode None Game No. 213 Rogue 213 Adventurer 0 Explorer 0 Win Type - Total 0 Types 0/0/0/0/0/0/0/0/0/0 Lore% 26 Gallery% 45 Achievement% 35 Wizard Run 0 Options --------- Layout 1 ASCII 0 Keyboard 1 Movement Arrows Keybinds 0 Fullscreen 2 Font 24/Smallcaps Map View 50x35 Zoom Use 0% Tactical HUD 1 Map Filters NONE Filters NONE Steam 1 RUN: 745070d2-879d-4f76-9933-44296efc109c